lending/lending_fUSD_20250917
["ID","MTS","AMOUNT","RATE_DAILY","PERIOD"]
[385872068,1758077443512,-1852.42,0.00025859,2]
[385872070,1758077443522,-600.74368454,0.00025873,2]
[385872072,1758077443531,-500.0,0.00025873,2]
[385872074,1758077443541,-500.0,0.00025873,2]
[385872076,1758077443550,-500.0,0.00025873,2]
[385872078,1758077443559,-503.31503115,0.00025873,2]
[385872080,1758077443569,-500.0,0.00025873,2]
[385872082,1758077443579,-393.42343679,0.00025873,2]
[385872084,1758077443590,-500.0,0.00025873,2]
[385872086,1758077443600,-500.0,0.00025873,2]
[385872088,1758077443611,-480.36,0.00025923,2]
[385872090,1758077443621,-1003.56556216,0.00025931,2]
[385872093,1758077443633,-5000.0,0.00025932,2]
[385872095,1758077443644,-1021.09,0.00026,2]
[385872097,1758077443654,-250.0,0.00026055,2]
[385872099,1758077443664,-150.0,0.00026102,2]
[385872101,1758077443675,-196.58,0.00026119,2]
[385872103,1758077443684,-500.0,0.00026357,2]
[385872105,1758077443694,-179.23066783,0.00026421,2]
[385872107,1758077443704,-1000.0,0.00026421,2]
[385872109,1758077443715,-1000.0,0.00026421,2]
[385872111,1758077443724,-502.87708173,0.00026421,2]
[385872113,1758077443734,-1000.0,0.00026421,2]
[385872115,1758077443743,-1000.0,0.00026421,2]
[385872117,1758077443753,-379.6,0.00026578,2]
[385872119,1758077443763,-167.83,0.00026606,2]
[385872121,1758077443774,-200.0,0.00026608,2]
[385872123,1758077443784,-200.0,0.00026612,2]
[385872125,1758077443793,-500.0,0.000268,2]
[385872126,1758077443803,-196.58,0.00026825,2]
[385872127,1758077443813,-1000.0,0.00026905,2]
[385872128,1758077443822,-500.0,0.00026927,5]
[385872129,1758077443832,-1000.0,0.00026968,2]
[385872130,1758077443842,-1505.84136896,0.00026968,2]
[385872131,1758077443851,-1500.0,0.00026968,2]
[385872132,1758077443861,-1259.4088717,0.00026968,2]
[385872133,1758077443871,-420.0,0.00026977,2]
[385872134,1758077443880,-516.07479255,0.00027,3]
[385872135,1758077443891,-516.07479255,0.00027,3]
[385872136,1758077443902,-1317.0,0.00027098,2]
[385872137,1758077443912,-555.0,0.00027137,2]
[385872138,1758077443922,-500.0,0.0002714,2]
[385872139,1758077443931,-343.66641256,0.0002714,2]
[385872140,1758077443941,-500.0,0.0002714,2]
[385872141,1758077443951,-500.0,0.0002714,2]
[385872142,1758077443961,-500.64307712,0.0002714,2]
[385872143,1758077443971,-500.0,0.0002714,2]
[385872144,1758077443980,-300.0,0.00027177,2]
[385872145,1758077443992,-234.43,0.00027198,2]
[385872146,1758077444002,-1021.09,0.000273,2]
[385872147,1758077444011,-500.0,0.00027348,2]
[385872148,1758077444020,-401.77168759,0.00027373,2]
[385872149,1758077444030,-500.0,0.00027373,2]
[385872150,1758077444040,-503.06496789,0.00027373,2]
[385872151,1758077444050,-500.0,0.00027373,2]
[385872152,1758077444059,-500.0,0.00027373,2]
[385872153,1758077444069,-427.77769525,0.00027373,2]
[385872154,1758077444090,-72.22230475,0.00027373,2]
[385872155,1758077444100,-500.0,0.00027373,2]
[385872156,1758077444109,-500.0,0.00027373,2]
[385872157,1758077444119,-500.0,0.00027373,2]
[385872158,1758077444128,-500.0,0.00027373,2]
[385872159,1758077444139,-372.87656203,0.00027396,2]
[385872160,1758077444152,-222.41724713,0.00027396,2]
[385872161,1758077444162,-218.22416389,0.00027396,2]
[385872162,1758077444172,-91.38858898,0.00027396,2]
[385872167,1758077446370,-136.19966015,0.00027396,2]
[385872168,1758077446380,-150.0,0.00027397,2]
[385872170,1758077446390,-300.0,0.00027397,2]
[385872171,1758077446400,-574.59156936,0.00027397,2]
[385872174,1758077446502,-425.39843064,0.00027397,2]
[385872175,1758077446512,-1556.54761485,0.00027397,2]
[385872183,1758077464930,332.31261592,0.00030027,120]
[385872184,1758077466396,500.0,0.00030027,120]
[385872185,1758077466484,500.0,0.00027322,120]
[385872186,1758077466597,507.79649168,0.00027362,120]
[385872187,1758077467789,2500.0,0.00030027,120]
[385872191,1758077800916,400.0,0.000301,120]
[385872192,1758077949387,400.0,0.000193,2]
[385872193,1758077971414,400.0,0.000193,2]
[385872194,1758077974543,500.0,0.00013699,2]
[385872197,1758078110925,1088.35571335,0.000185,2]
[385872199,1758078203084,2000.0,0.000185,2]
[385872229,1758078632353,-171.58,0.00020317,2]
[385872231,1758078632363,-187.56126389,0.00022285,2]
[385872233,1758078632373,-227.83081299,0.00022285,2]
[385872234,1758078632511,-22.16918701,0.00022285,2]
[385872235,1758078632520,-295.705619,0.0002439,2]
[385872236,1758078632531,-250.0,0.00024513,2]
[385872237,1758078632543,-150.0,0.00024537,7]
[385872238,1758078632553,-1441.3886579,0.00024635,2]
[385872239,1758078632565,-253.65,0.00024658,2]
[385872240,1758078632574,-816.1396,0.000248,2]
[385872241,1758078632584,-500.0,0.00024813,2]
[385872242,1758078632594,-300.0,0.00024898,2]
[385872243,1758078632606,-1200.0,0.00024898,2]
[385872244,1758078632618,-500.0,0.00024899,2]
[385872245,1758078632628,-507.38493293,0.00024899,2]
[385872246,1758078632637,-300.00000001,0.00024899,2]
[385872247,1758078632648,-13242.3817035,0.000249,2]
[385872248,1758078632658,-2157.76,0.00024969,2]
[385872249,1758078632667,-1000.0,0.0002504,2]
[385872250,1758078632677,-600.0,0.00025129,2]
[385872251,1758078632687,-2942.04526359,0.00025143,2]
[385872260,1758078638215,-3405.34900753,0.00025143,2]
[385872261,1758078638423,-3882.46572888,0.00025143,2]
[385872262,1758078638433,-404.02,0.00025345,2]
[385872263,1758078638442,-5000.0,0.00025396,2]
[385872264,1758078638452,-8778.42,0.00025448,2]
[385872265,1758078638463,-666.0,0.00025515,3]
[385872266,1758078638474,-250.0,0.00025544,2]
[385872267,1758078638486,-5000.0,0.00025765,2]
[385872268,1758078638496,-744.3,0.00025765,2]
[385872269,1758078638506,-500.0,0.00025773,2]
[385872270,1758078638515,-500.0,0.00025773,2]
[385872271,1758078638525,-500.0,0.00025773,2]
[385872272,1758078638535,-500.0,0.00025773,2]
[385872273,1758078638544,-500.0,0.00025773,2]
[385872274,1758078638555,-224.47,0.00025775,2]
[385872275,1758078638565,-224.47,0.00025775,2]
[385872276,1758078638574,-224.47,0.00025775,2]
[385872278,1758078638583,-224.47,0.00025775,2]
[385872280,1758078638592,-224.47,0.00025775,2]
[385872281,1758078638602,-9856.41,0.00025775,2]
[385872283,1758078638611,-9856.41,0.00025775,2]
[385872286,1758078638622,-184.95842598,0.00025784,2]
[385872288,1758078638631,-152.75691472,0.00025784,2]
[385872290,1758078638641,-500.0,0.00025784,2]
[385872292,1758078638651,-285.86375971,0.00025784,2]
[385872293,1758078638661,-16049.73677982,0.00025785,2]
[385872294,1758078638671,-742342.31788911,0.00025785,2]
[385872296,1758078638680,-150.99,0.00025786,2]
[385872298,1758078638691,-9999.99,0.00025786,2]
[385872300,1758078638701,-9999.99,0.00025786,2]
[385872302,1758078638716,-2918.65,0.00025786,2]
[385872304,1758078638725,-304.28,0.00025786,2]
[385872306,1758078638734,-9999.99,0.00025786,2]
[385872308,1758078638744,-504.1,0.00025786,2]
[385872310,1758078638753,-9999.99,0.00025786,2]
[385872312,1758078638762,-13723.15,0.00025786,2]
[385872314,1758078638771,-1439.67,0.00025786,2]
[385872316,1758078638781,-1576.52,0.00025786,2]
[385872317,1758078638790,-83630.06,0.00025786,2]
[385872318,1758078638800,-97620.98,0.00025786,10]
[385872319,1758078638809,-499.99,0.00025786,2]
[385872320,1758078638819,-9999.99,0.00025786,2]
[385872321,1758078638828,-999.99,0.00025786,2]
[385872322,1758078638837,-417.39,0.00025786,2]
[385872323,1758078638846,-150.99,0.00025786,2]
[385872324,1758078638856,-287.04,0.00025786,12]
[385872325,1758078638865,-341.71,0.00025786,2]
[385872326,1758078638874,-3749.02,0.00025786,2]
[385872327,1758078638883,-9999.99,0.00025786,2]
[385872328,1758078638892,-347.95853118,0.00025786,2]
[385872329,1758078638903,-1021.09,0.00026,2]
[385872330,1758078638912,-150.0,0.00026044,2]
[385872331,1758078638922,-404.02,0.00026296,2]
[385872332,1758078638931,-1000.0,0.00026321,2]
[385872333,1758078638940,-1000.0,0.00026321,2]
[385872334,1758078638950,-1000.0,0.00026321,2]
[385872335,1758078638959,-1000.0,0.00026321,2]
[385872336,1758078638968,-1000.0,0.00026321,2]
[385872337,1758078638978,-606.93891786,0.00026392,10]
[385872338,1758078638987,-19378.88262941,0.00026481,2]
[385872339,1758078638997,-880.57465417,0.00026481,2]
[385872340,1758078639006,-1483.1466338,0.00026481,2]
[385872341,1758078639015,-1482.79405314,0.00026492,2]
[385872342,1758078639024,-150.0,0.00026518,2]
[385872343,1758078639034,-150.0,0.00026555,2]
[385872344,1758078639043,-262.02883589,0.00026557,2]
[385872345,1758078639052,-333.95832026,0.00026558,2]
[385872346,1758078639060,-405.88780462,0.0002656,2]
[385872347,1758078639069,-477.81728898,0.00026562,2]
[385872348,1758078639077,-549.74677335,0.00026564,2]
[385872349,1758078639086,-621.67625771,0.00026566,2]
[385872350,1758078639096,-693.60574207,0.00026568,2]
[385872351,1758078639106,-765.53522644,0.0002657,2]
[385872352,1758078639115,-837.4647108,0.00026571,2]
[385872353,1758078639124,-152.62,0.00026571,2]
[385872354,1758078639133,-500.0,0.00026573,2]
[385872355,1758078639142,-500.0,0.00026573,2]
[385872356,1758078639152,-160.52801701,0.00026573,2]
[385872357,1758078639161,-500.0,0.00026573,2]
[385872358,1758078639171,-500.0,0.00026573,2]
[385872359,1758078639180,-500.0,0.00026573,2]
[385872360,1758078639189,-500.0,0.00026573,2]
[385872361,1758078639199,-501.09720928,0.00026573,2]
[385872362,1758078639208,-500.0,0.00026573,2]
[385872363,1758078639217,-500.0,0.00026573,2]
[385872364,1758078639227,-500.0,0.00026573,2]
[385872365,1758078639237,-500.54332424,0.00026573,2]
[385872366,1758078639247,-500.0,0.00026573,2]
[385872367,1758078639256,-500.61762801,0.00026573,2]
[385872368,1758078639264,-587.14935801,0.00026573,2]
[385872369,1758078639274,-500.0,0.00026573,2]
[385872370,1758078639283,-500.0,0.00026573,2]
[385872371,1758078639292,-159.85260474,0.00026573,2]
[385872372,1758078639301,-511.47139,0.00026573,2]
[385872373,1758078639310,-504.77559094,0.00026573,2]
[385872374,1758078639319,-500.0,0.00026573,2]
[385872375,1758078639328,-254.78636331,0.00026573,2]
[385872376,1758078639338,-500.0,0.00026573,2]
[385872377,1758078639347,-500.0,0.00026573,2]
[385872378,1758078639356,-500.0,0.00026575,2]
[385872379,1758078639366,-500.0,0.00026575,2]
[385872380,1758078639375,-500.0,0.00026575,2]
[385872381,1758078639384,-200.0,0.00026575,2]
[385872382,1758078639393,-500.0,0.00026575,2]
[385872383,1758078639402,-500.0,0.00026575,2]
[385872384,1758078639411,-500.0,0.00026575,2]
[385872385,1758078639420,-500.0,0.00026575,2]
[385872386,1758078639429,-600.0,0.00026575,2]
[385872387,1758078639438,-500.0,0.00026575,2]
[385872388,1758078639448,-500.0,0.00026575,2]
[385872389,1758078639457,-500.0,0.00026575,2]
[385872390,1758078639467,-500.0,0.00026575,2]
[385872391,1758078639476,-200.0,0.00026575,2]
[385872392,1758078639488,-500.0,0.00026575,2]
[385872393,1758078639497,-527.32066613,0.00026575,2]
[385872394,1758078639507,-151.0,0.00026575,2]
[385872395,1758078639516,-200.0,0.00026575,2]
[385872396,1758078639525,-151.0,0.00026575,2]
[385872397,1758078639535,-151.0,0.00026575,2]
[385872398,1758078639544,-151.0,0.00026575,2]
[385872399,1758078639554,-171.98524297,0.00026575,2]
[385872400,1758078639563,-155.24394611,0.00026575,2]
[385872401,1758078639572,-151.0,0.00026575,2]
[385872402,1758078639582,-151.0,0.00026575,2]
[385872403,1758078639591,-151.0,0.00026575,2]
[385872404,1758078639600,-151.0,0.00026575,2]
[385872405,1758078639609,-151.0,0.00026575,2]
[385872406,1758078639618,-151.0,0.00026575,2]
[385872407,1758078639627,-151.0,0.00026575,2]
[385872408,1758078639636,-151.0,0.00026575,2]
[385872409,1758078639646,-151.0,0.00026575,2]
[385872410,1758078639655,-151.0,0.00026575,2]
[385872411,1758078639664,-151.0,0.00026575,2]
[385872412,1758078639673,-151.0,0.00026575,2]
[385872413,1758078639682,-151.0,0.00026575,2]
[385872414,1758078639691,-158.75031056,0.00026578,7]
[385872415,1758078639701,-259283.617347,0.00026581,3]
[385872416,1758078639710,-112666.081237,0.00026581,3]
[385872417,1758078639719,-160.0,0.00026581,3]
[385872418,1758078639728,-516.07479255,0.00026581,3]
[385872419,1758078639737,-213.18994792,0.00026581,3]
[385872420,1758078639746,-34571.1489796,0.00026582,3]
[385872421,1758078639756,-32190.3089247,0.00026582,3]
[385872422,1758078639767,-5083.36,0.00026582,2]
[385872423,1758078639776,-2893.43420711,0.00026591,2]
[385872424,1758078639785,-200.0,0.00026667,2]
[385872425,1758078639795,-500.0,0.000268,9]
[385872426,1758078639804,-1500.0,0.00026868,2]
[385872427,1758078639813,-1500.0,0.00026868,2]
[385872428,1758078639823,-1500.0,0.00026868,2]
[385872429,1758078639833,-1500.0,0.00026868,2]
[385872430,1758078639843,-705.72921996,0.00026868,2]
[385872431,1758078639852,-1000.0,0.000269,9]
[385872432,1758078639862,-1743.57,0.00026926,2]
[385872433,1758078639871,-16095.1544624,0.00026975,3]
[385872434,1758078639880,-420.0,0.00026976,2]
[385872435,1758078639890,-500.0,0.00026985,5]
[385872436,1758078639899,-1482.79405314,0.00026995,2]
[385872437,1758078639913,-767.73,0.00027,2]
[385872438,1758078639922,-17285.5744898,0.00027063,3]
[385872439,1758078639932,-170.82020607,0.00027073,2]
[385872440,1758078639942,-411.11475388,0.00027073,2]
[385872441,1758078639951,-500.0,0.00027073,2]
[385872442,1758078639960,-501.05691471,0.00027073,2]
[385872443,1758078639970,-500.0,0.00027073,2]
[385872444,1758078639979,-500.0,0.00027073,2]
[385872445,1758078639989,-500.0,0.00027073,2]
[385872446,1758078640000,-500.56397611,0.00027073,2]
[385872447,1758078640009,-501.0892335,0.00027073,2]
[385872448,1758078640020,-500.0,0.00027073,2]
[385872449,1758078640029,-200.0,0.00027073,2]
[385872450,1758078640038,-501.10191247,0.00027073,2]
[385872452,1758078640047,-501.33157288,0.00027073,2]
[385872453,1758078640057,-500.0,0.00027073,2]
[385872454,1758078640066,-86427.8724491,0.00027075,3]
[385872455,1758078640075,-144856.390161,0.00027075,3]
[385872456,1758078640089,-154358.82011679,0.00027085,2]
[385872458,1758078640100,-151.0,0.00027085,7]
[385872460,1758078640109,-151.0,0.00027085,7]
[385872461,1758078640119,-151.0,0.00027085,7]
[385872462,1758078640129,-151.0,0.00027085,7]
[385872463,1758078640139,-16095.1544624,0.00027085,3]
[385872464,1758078640149,-500.0,0.00027095,5]
[385872466,1758078640158,-576.5346535,0.00027095,2]
[385872467,1758078640167,-3965.7050924,0.00027095,2]
[385872468,1758078640176,-9391.2465619,0.00027095,2]
[385872469,1758078640186,-472.13,0.00027096,2]
[385872470,1758078640195,-823.25,0.00027096,2]
[385872472,1758078640205,-1680.0,0.00027098,2]
[385872473,1758078640214,-16095.1544624,0.00027111,3]
[385872474,1758078640224,-1000.0,0.00027121,2]
[385872475,1758078640233,-1000.0,0.00027121,2]
[385872476,1758078640243,-1000.0,0.00027121,2]
[385872477,1758078640252,-1000.0,0.00027121,2]
[385872478,1758078640262,-1000.0,0.00027121,2]
[385872479,1758078640271,-1000.0,0.00027121,2]
[385872480,1758078640281,-1000.0,0.00027121,2]
[385872481,1758078640291,-1000.0,0.00027121,2]
[385872482,1758078640300,-503.15394586,0.00027121,2]
[385872483,1758078640310,-1000.0,0.00027121,2]
[385872484,1758078640320,-1000.0,0.00027121,2]
[385872485,1758078640330,-1000.0,0.00027121,2]
[385872486,1758078640339,-1000.0,0.00027121,2]
[385872487,1758078640348,-1000.0,0.00027121,2]
[385872488,1758078640359,-433.23,0.00027123,2]
[385872489,1758078640369,-600.0,0.00027123,2]
[385872490,1758078640378,-200.0,0.00027123,2]
[385872491,1758078640387,-200.0,0.00027123,2]
[385872492,1758078640398,-500.0,0.00027173,2]
[385872493,1758078640407,-404.02,0.00027246,2]
[385872494,1758078640417,-500.0,0.00027297,2]
[385872495,1758078640426,-500.0,0.00027297,2]
[385872496,1758078640436,-535.3,0.00027297,2]
[385872497,1758078640445,-534.97,0.00027302,2]
[385872498,1758078640456,-364.93056548,0.00027354,2]
[385872499,1758078640465,-16095.1544624,0.0002736,3]
[385872500,1758078640475,-151.0,0.00027361,7]
[385872501,1758078640488,-254.884899,0.00027361,7]
[385872502,1758078640497,-254.884899,0.00027361,7]
[385872503,1758078640506,-254.884899,0.00027361,7]
[385872504,1758078640515,-151.0,0.00027361,7]
[385872505,1758078640526,-254.884899,0.00027361,7]
[385872506,1758078640535,-151.0,0.00027361,7]
[385872507,1758078640544,-151.0,0.00027361,7]
[385872508,1758078640553,-151.0,0.00027361,7]
[385872509,1758078640563,-151.0,0.00027361,7]
[385872510,1758078640572,-254.514932,0.00027361,7]
[385872511,1758078640582,-811.592004,0.00027361,7]
[385872512,1758078640591,-260.720469,0.00027361,7]
[385872513,1758078640600,-151.0,0.00027361,7]
[385872514,1758078640610,-811.592004,0.00027361,7]
[385872515,1758078640619,-254.514932,0.00027361,7]
[385872517,1758078640628,-157.347925,0.00027361,7]
[385872518,1758078640638,-254.514932,0.00027361,7]
[385872519,1758078640648,-811.592004,0.00027361,7]
[385872520,1758078640657,-811.592004,0.00027361,7]
[385872521,1758078640667,-151.0,0.00027361,7]
[385872522,1758078640676,-151.0,0.00027361,7]
[385872524,1758078640685,-254.514932,0.00027361,7]
[385872526,1758078640695,-151.0,0.00027361,7]
[385872528,1758078640704,-151.0,0.00027361,7]
[385872530,1758078640714,-151.0,0.00027361,7]
[385872532,1758078640724,-151.0,0.00027361,7]
[385872534,1758078640733,-161.969788,0.00027361,7]
[385872536,1758078640743,-151.0,0.00027361,7]
[385872538,1758078640752,-151.0,0.00027361,7]
[385872540,1758078640761,-151.0,0.00027361,7]
[385872542,1758078640771,-151.0,0.00027361,7]
[385872544,1758078640780,-158.641737,0.00027361,7]
[385872546,1758078640790,-151.0,0.00027361,7]
[385872548,1758078640799,-151.0,0.00027361,7]
[385872551,1758078640808,-151.0,0.00027361,7]
[385872552,1758078640818,-151.0,0.00027361,7]
[385872554,1758078640827,-151.0,0.00027361,7]
[385872557,1758078640837,-151.195369,0.00027361,7]
[385872559,1758078640847,-506.56657872,0.0002737,2]
[385872561,1758078640856,-501.23419872,0.00027373,2]
[385872564,1758078640866,-501.08596697,0.00027373,2]
[385872566,1758078640875,-500.0,0.00027373,2]
[385872568,1758078640884,-500.0,0.00027373,2]
[385872570,1758078640894,-500.0,0.00027373,2]
[385872572,1758078640903,-502.58701886,0.00027373,2]
[385872574,1758078640912,-151.94948064,0.00027397,2]
[385872576,1758078640922,-7000.0,0.00027397,2]
[385872578,1758078640931,-425.22778013,0.00027397,2]
[385872580,1758078640941,-151.0,0.00027397,7]
[385872582,1758078640950,-2000.0,0.00027416,2]
[385872584,1758078640959,-2000.0,0.00027416,5]
[385872586,1758078640968,-360.41769123,0.00027416,5]
[385872588,1758078640978,-2000.0,0.00027416,5]
[385872590,1758078640987,-156.69,0.00027425,30]
[385872592,1758078640996,-500.0,0.00027533,5]
[385872594,1758078641007,-253.65,0.00027544,2]
[385872596,1758078641016,-19378.88262933,0.00027582,2]
[385872598,1758078641025,-160.0,0.00027609,2]
[385872600,1758078641034,-160.0,0.00027609,2]
[385872602,1758078641044,-213.18994792,0.00027609,2]
[385872604,1758078641053,-516.07479255,0.00027609,2]
[385872606,1758078641063,-160.0,0.00027609,2]
[385872608,1758078641072,-16095.1544624,0.00027611,3]
[385872610,1758078641081,-1000.0,0.00027621,5]
[385872612,1758078641091,-1000.0,0.00027621,5]
[385872614,1758078641101,-1000.0,0.00027621,5]
[385872616,1758078641110,-801.68280982,0.00027621,5]
[385872618,1758078641119,-1000.0,0.00027621,5]
[385872620,1758078641128,-930.75237213,0.00027621,5]
[385872622,1758078641137,-880.57465412,0.00027649,2]
[385872624,1758078641146,-589.40337767,0.00027668,5]
[385872626,1758078641155,-1500.0,0.00027668,5]
[385872628,1758078641165,-1500.0,0.00027668,5]
[385872630,1758078641174,-1004.80495171,0.00027668,5]
[385872632,1758078641183,-1500.0,0.00027668,5]
[385872634,1758078641192,-1500.0,0.00027668,5]
[385872636,1758078641202,-1500.0,0.00027668,5]
[385872638,1758078641211,-1500.0,0.00027668,5]
[385872641,1758078641221,-507.01441022,0.00027668,5]
[385872643,1758078641230,-1178.3103739,0.00027668,5]
[385872645,1758078641239,-500.0,0.00027668,5]
[385872646,1758078641249,-1500.0,0.00027668,5]
[385872648,1758078641258,-600.0,0.00027671,2]
[385872650,1758078641267,-200.0,0.00027671,2]
[385872652,1758078641276,-200.0,0.00027671,2]
[385872654,1758078641285,-16095.1544624,0.00027682,3]
[385872656,1758078641294,-1000.0,0.00027692,2]
[385872659,1758078641305,-1000.0,0.00027721,5]
[385872661,1758078641315,-16095.1544624,0.00027771,3]
[385872663,1758078641324,-500.0,0.00027773,5]
[385872665,1758078641333,-500.0,0.00027773,5]
[385872667,1758078641344,-500.0,0.00027773,5]
[385872669,1758078641354,-500.0,0.00027801,2]
[385872671,1758078641363,-500.0,0.00027801,2]
[385872701,1758078641639,-267.28227627,0.00027801,2]
[385872704,1758078641648,-1600.0,0.000279,10]
[385872706,1758078641658,-16095.1544624,0.00027911,3]
[385872708,1758078641667,-347.66,0.00027918,2]
[385872710,1758078641677,-1000.0,0.00027921,5]
[385872712,1758078641686,-1000.0,0.00027921,5]
[385872714,1758078641695,-1000.0,0.00027921,5]
[385872716,1758078641704,-2500.0,0.00027964,2]
[385872718,1758078641713,-2500.0,0.00027964,5]
[385872720,1758078641722,-2500.0,0.00027964,5]
[385872722,1758078641732,-500.0,0.00027973,5]
[385872724,1758078641740,-500.0,0.00027973,5]
[385872726,1758078641750,-160.0,0.00028,3]
[385872727,1758078641759,-400.0,0.00028032,5]
[385872728,1758078641768,-16095.1544624,0.00028054,3]
[385872729,1758078641778,-150.0,0.00028069,5]
[385872730,1758078641787,-150.0,0.00028069,5]
[385872731,1758078641797,-500.0,0.00028081,5]
[385872732,1758078641807,-500.0,0.00028165,5]
[385872733,1758078641815,-500.0,0.00028165,5]
[385872734,1758078641825,-165.13734492,0.00028165,5]
[385872735,1758078641834,-500.0,0.00028165,5]
[385872736,1758078641843,-540.2864065,0.00028165,5]
[385872737,1758078641852,-500.0,0.00028165,5]
[385872739,1758078641862,-533.21836435,0.00028165,5]
[385872741,1758078641871,-1007.64112434,0.00028168,5]
[385872743,1758078641880,-1075.02192947,0.00028168,5]
[385872745,1758078641889,-1000.0,0.00028168,5]
[385872747,1758078641899,-1500.0,0.00028168,5]
[385872749,1758078641908,-404.02,0.00028196,2]
[385872751,1758078641917,-500.0,0.0002821,5]
[385872753,1758078641926,-1169.56814377,0.00028216,5]
[385872755,1758078641935,-1967.69178106,0.00028216,5]
[385872757,1758078641945,-2000.0,0.00028216,5]
[385872759,1758078641954,-517.5024396,0.00028216,5]
[385872761,1758078641963,-500.0,0.00028216,5]
[385872763,1758078641978,-2000.0,0.00028216,5]
[385872765,1758078641989,-2079.11325259,0.00028216,5]
[385872767,1758078641999,-600.0,0.00028219,2]
[385872770,1758078642009,-200.0,0.00028219,2]
[385872772,1758078642019,-200.0,0.00028219,2]
[385872774,1758078642029,-16095.1544624,0.00028252,3]
[385872776,1758078642039,-151.0,0.00028262,7]
[385872778,1758078642049,-151.0,0.00028262,7]
[385872780,1758078642059,-151.0,0.00028262,7]
[385872782,1758078642069,-170.473852,0.00028262,7]
[385872784,1758078642079,-168.693665,0.00028262,7]
[385872786,1758078642088,-151.0,0.00028262,7]
[385872788,1758078642098,-155.69624,0.00028262,7]
[385872790,1758078642108,-151.0,0.00028262,7]
[385872792,1758078642117,-201.453293,0.00028262,7]
[385872794,1758078642127,-151.0,0.00028262,7]
[385872797,1758078642139,-151.0,0.00028262,7]
[385872799,1758078642149,-151.0,0.00028262,7]
[385872801,1758078642159,-151.0,0.00028268,7]
[385872803,1758078642169,-151.0,0.00028268,7]
[385872805,1758078642179,-179.329868,0.00028268,7]
[385872807,1758078642189,-151.0,0.00028268,7]
[385872809,1758078642200,-422.848426,0.00028268,7]
[385872811,1758078642209,-422.848426,0.00028268,7]
[385872813,1758078642219,-422.848426,0.00028268,7]
[385872815,1758078642228,-151.0,0.00028268,7]
[385872818,1758078642239,-151.0,0.00028268,7]
[385872820,1758078642249,-422.848426,0.00028268,7]
[385872822,1758078642259,-151.0,0.00028268,7]
[385872824,1758078642268,-151.0,0.00028268,7]
[385872826,1758078642277,-151.0,0.00028268,7]
[385872828,1758078642286,-151.0,0.00028268,7]
[385872830,1758078642296,-151.0,0.00028268,7]
[385872832,1758078642305,-151.0,0.00028268,7]
[385872834,1758078642315,-151.0,0.00028268,7]
[385872836,1758078642324,-153.647356,0.00028268,7]
[385872838,1758078642334,-151.0,0.00028268,7]
[385872840,1758078642346,-151.0,0.00028268,7]
[385872842,1758078642355,-348.032368,0.00028268,7]
[385872844,1758078642365,-348.032368,0.00028268,7]
[385872846,1758078642374,-348.032368,0.00028268,7]
[385872848,1758078642384,-348.032368,0.00028268,7]
[385872850,1758078642394,-151.0,0.00028268,7]
[385872852,1758078642404,-160.0,0.00028268,14]
[385872854,1758078642414,-160.0,0.00028268,14]
[385872856,1758078642423,-160.0,0.00028268,14]
[385872858,1758078642433,-160.0,0.00028268,14]
[385872860,1758078642442,-160.0,0.00028268,14]
[385872863,1758078642451,-160.0,0.00028268,14]